Cogmind - Beta 16 --- EXPLORER MODE // 2025.12.01 @ 09:07:04 Player: K.K.Y. Result: Destroyed by 27-WE5(R) with Subdweller Machine Gun Performance ------------- Evolutions (0) 0 Regions Visited (3) 600 Robots Destroyed (18) 90 Value Destroyed (373) 373 Prototype IDs (1) 20 Alien Tech Used (0) 0 Bonus (0) 0 TOTAL SCORE: 1083 Bonus ------- None Cogmind --------- Core Integrity 0/250 Matter 277/300 Energy 151/160 System Corruption 0% Temperature Cool (0) Movement Flying (117) Ox1 Location -10/Subcaves Parts ------- > --- POWER (1) -------- Light Nuclear Core > --- PROPULSION (2) --- Flight Unit Flight Unit > --- UTILITY (3) ------ Sensor Array Improved Terrain Scanner > --- WEAPON (2) ------- Subdweller Laser Heavy Assault Rifle > --- INVENTORY (5) ---- High-capacity Storage Unit Riot Gun Medium Laser Makeshift Laser Heavy Assault Rifle Peak State ------------ > --- POWER ------------ Ion Engine > --- PROPULSION ------- Aluminum Leg Aluminum Leg > --- UTILITY ---------- Medium Storage Unit Experimental Sensor Array > --- WEAPON ----------- Medium Laser Medium Laser > --- INVENTORY -------- Light Nuclear Core High-capacity Storage Unit Sensor Array Improved Terrain Scanner Medium Laser Mining Laser [Rating: 16] Favorites ----------- Power Light Ion Engine Engine Light Ion Engine Power Core Light Nuclear Core Propulsion Aluminum Leg Leg Aluminum Leg Flight Unit Flight Unit Utility Medium Storage Unit Device Experimental Sensor Array Storage Medium Storage Unit Weapon Medium Laser Energy Gun Medium Laser Ballistic Gun Heavy Assault Rifle Special Weapon Mining Laser Build | -11 -10 -10 -10 ------- Run | Yrd Mat Min Sub Slots Evolved 1 | . 1 . . Power . | . . . . Propulsion . | . . . . Utility 1 | . 1 . . Weapon . | . . . . Parts Attached 18 | 1 4 2 11 Power 3 | . . 1 2 Engine 2 | . . 1 1 Core 1 | . . . 1 Reactor . | . . . . Propulsion 5 | . 2 . 3 Treads . | . . . . Leg 2 | . 2 . . Wheel . | . . . . Hover . | . . . . Flight 3 | . . . 3 Utility 4 | 1 . 1 2 Device 3 | . . 1 2 Storage 1 | 1 . . . Processor . | . . . . Hackware . | . . . . Protection . | . . . . Artifact . | . . . . Weapon 6 | . 2 . 4 Energy Gun 3 | . 2 . 1 Energy Cannon . | . . . . Ballistic Gun 2 | . . . 2 Ballistic Cannon . | . . . . Launcher . | . . . . Special Weapon 1 | . . . 1 Impact Weapon . | . . . . Slashing Weapon . | . . . . Piercing Weapon . | . . . . Special Melee Weapon . | . . . . Unidentified Prototypes 1 | . . 1 . Parts Lost 8 | . . . 8 Power 1 | . . . 1 Propulsion 3 | . . . 3 Utility 1 | . . . 1 Weapon 3 | . . . 3 Highest Loss Streak 4 | . . . 4 To Critical Strikes . | . . . . Average Backups 6 | 5 5 7 6 Power 1 | . 1 1 . Propulsion . | 1 . . . Utility 2 | . 1 2 2 Weapon 2 | 2 2 2 2 Tool/Special . | . . . . Unused Backups 4 | . . . 4 Power . | . . . . Propulsion 1 | . . . 1 Utility 1 | . . . 1 Weapon 2 | . . . 2 Tool/Special . | . . . . Average Slot Usage (%) 65 | . 46 76 70 Engine 3 | . . 4 6 Leg 16 | . 19 25 8 Flight 4 | . . . 10 Device 9 | . . 9 16 Storage 9 | . 12 12 6 Energy Gun 15 | . 14 25 10 Ballistic Gun 3 | . . . 7 Peak Build Rating 16 | 1 5 16 16 Average Rating 9 | . 3 13 11 On Entrance 5 | . 1 5 16 Avg Prop Armor Cover (%) . | . . . . Naked Turns . | . . . . Heaviest Build 20 | 10 14 20 20 Greatest Support 20 | 3 20 20 20 Greatest Overweight (x) 5 | 3 3 . 5 Average Overweight (x) . | 1 . . . Largest Inventory Capacity 10 | 10 10 10 10 Average Capacity 8 | 8 10 10 7 Most Carried 9 | 7 7 8 9 Average Carried 6 | 5 5 7 6 Final Capacity 10 | 10 10 10 5 Final Carried 8 | 7 6 8 5 Class Distribution -------------------- 79% | Hacker-Mutant 20% | Scavenger-Mutant Dominant Class ---------------- Hacker-Mutant | -10/Materials Hacker-Mutant | -10/Mines Scavenger-Mutant | -10/Subcaves Resources | -11 -10 -10 -10 ----------- Run | Yrd Mat Min Sub Matter Collected 391 | 56 194 20 121 Remotely . | . . . . Salvage Created 496 | . 163 108 225 Parts 39 | . 12 7 20 Haulers Intercepted . | . . . . Recyclers Shooed . | . . . . Parts Field Recycled . | . . . . Retrieved Matter . | . . . . Parts Self-Destructed . | . . . . Prevented . | . . . . Parts Restored . | . . . . Kills | -11 -10 -10 -10 ------- Run | Yrd Mat Min Sub Combat Hostiles Destroyed 11 | . 4 . 7 Guns 11 | . 4 . 7 Classes Destroyed 7 | . 3 2 2 Tunneler 2 | . . 2 . Recycler 1 | . . 1 . Turret 2 | . . . 2 Watcher 2 | . 2 . . Swarmer 6 | . 2 . 4 Grunt 2 | . 2 . . Subdweller 3 | . . . 3 Best Kill Streak 5 | . 5 2 4 Combat Bots Only 4 | . 4 . 2 Max Kills in Single Turn 1 | . 1 1 1 Gunslinging . | . . . . Exploded . | . . . . Melee . | . . . . Uniques/NPCs Destroyed . | . . . . Combat | -11 -10 -10 -10 -------- Run | Yrd Mat Min Sub Hostile Shots Fired 169 | . 21 . 148 Missed 47 | . 5 . 42 Hits 122 | . 16 . 106 Projectile 122 | . 16 . 106 Critical Strikes 2 | . . . 2 Damage Taken 906 | . 114 . 792 Core 259 | . 10 . 249 Absorbed by Shields . | . . . . Ignored by Resistances 553 | . 76 . 477 Core Remaining (%) 100 | 100 . . . Volleys Fired 67 | . 17 8 42 Largest 2 | . 2 2 2 Hottest 150 | . 100 100 150 Shots Fired 99 | . 25 16 58 Gun 92 | . 25 16 51 Cannon . | . . . . Launcher . | . . . . Special 7 | . . . 7 Kinetic 13 | . . . 13 Thermal 86 | . 25 16 45 Explosive . | . . . . Electromagnetic . | . . . . Robot Hit Streak 17 | . 12 12 17 Robot Miss Streak 2 | . 1 1 2 Penetration Max . | . . . . Secondary Targets 1 | . . . 1 Max Gunslinging Chain 1 | . . . 1 Shots Hit Robots 75 | . 19 15 41 Core Hits 30 | . 11 4 15 Critical Kills 2 | . . . 2 Critical Parts Destroyed . | . . . . Critical Strikes 7 | . 1 1 5 Burn 5 | . 1 1 3 Destroy 2 | . . . 2 Melee Attacks . | . . . . Impact . | . . . . Slashing . | . . . . Piercing . | . . . . Sneak Attacks . | . . . . Combat Hostiles . | . . . . Follow-up Attacks . | . . . . Damage Inflicted 1036 | . 245 189 602 Guns 988 | . 245 189 554 Cannons . | . . . . Explosions . | . . . . Melee . | . . . . Ramming . | . . . . Kinetic 162 | . . . 162 Thermal 874 | . 245 189 440 Explosive . | . . . . Electromagnetic . | . . . . Impact . | . . . . Slashing . | . . . . Piercing . | . . . . Highest Corruption . | . . . . Average Corruption . | . . . . Corruption Purged . | . . . . Corruption Blocked . | . . . . Overload Shots . | . . . . Overflow Damage 8 | . . . 8 Projectiles 8 | . . . 8 Explosions . | . . . . Melee . | . . . . Knockbacks . | . . . . Impact . | . . . . Kinetic . | . . . . Secondary . | . . . . Self-Inflicted Damage . | . . . . Shots . | . . . . Rammed . | . . . . Targets Rammed . | . . . . Kicked . | . . . . Crushed . | . . . . Highest Temperature 165 | . 165 96 3 Average Temperature 50 | . 70 33 3 Received Heat Transfer 321 | . 90 . 231 Siege Activations . | . . . . Martial Activations . | . . . . Shielding Activations . | . . . . Robots Disrupted . | . . . . Combat Hostiles . | . . . . Robots Corrupted . | . . . . Combat Hostiles . | . . . . Parts Fried . | . . . . Impact Corruptions . | . . . . Robots Melted . | . . . . Combat Hostiles . | . . . . Parts Melted 5 | . 2 1 2 Heat Transferred 2741 | . 814 629 1298 Parts Sabotaged . | . . . . Parts Stolen . | . . . . Parts Stripped . | . . . . Power Chain Reactions . | . . . . Alert | -11 -10 -10 -10 ------- Run | Yrd Mat Min Sub Maximum Alert Level . | . . . . Low Security (%) 100 | 100 100 100 . Level 1 . | . . . . Level 2 . | . . . . Level 3 . | . . . . Level 4 . | . . . . Level 5 . | . . . . High Security . | . . . . Max Security . | . . . . Peak Influence 93 | . 93 10 . Initial . | . . . . Average 6 | . 12 . . Influence Increases 340 | . 115 15 210 Destroy 0b10 Robot/C 200 | . 80 . 120 Destroy 0b10 Robot/NC 25 | . 10 15 . Destroy Leader 24 | . 24 . . Destroy Structure 1 | . 1 . . Lose Combat Pursuer 90 | . . . 90 Influence Decreases 340 | . 115 15 210 Time Decay 315 | . 115 15 185 Lost Part 25 | . . . 25 Squads Dispatched . | . . . . Investigation . | . . . . Extermination . | . . . . Reinforcement . | . . . . Assault . | . . . . Garrison . | . . . . Intercept . | . . . . Searches Triggered . | . . . . Construction Impeded . | . . . . Haulers Reinforced . | . . . . Active Scanning Responses . | . . . . Cargo Convoy Interrupts . | . . . . Stealth | -11 -10 -10 -10 --------- Run | Yrd Mat Min Sub Distress Signals 1 | . 1 . . Communications Jammed . | . . . . Distress Signals . | . . . . Times Spotted 22 | . 8 2 12 Peak Tracking Total 6 | . 6 . 3 Tactical Retreats 3 | . . . 3 Traps | -11 -10 -10 -10 ------- Run | Yrd Mat Min Sub Traps Triggered 1 | . . . 1 Indirectly . | . . . . Trap Hack Attempts . | . . . . Triggered . | . . . . Disarmed . | . . . . Reprogrammed . | . . . . Reused . | . . . . Traps Extracted . | . . . . Installed . | . . . . Triggered . | . . . . Machines | -11 -10 -10 -10 ---------- Run | Yrd Mat Min Sub Machines Disabled 1 | . . . 1 Max in Single Turn 1 | . . . 1 Machines Repaired . | . . . . Machines Dismantled . | . . . . Machines Sabotaged . | . . . . Overloaded Fab Kills . | . . . . Hacking | -11 -10 -10 -10 --------- Run | Yrd Mat Min Sub Machines Accessed 1 | . . . 1 Terminals . | . . . . Fabricators . | . . . . Repair Stations . | . . . . Recycling Units . | . . . . Scanalyzers . | . . . . Garrison Access . | . . . . Total Hacks 3 | . . . 3 Successful 3 | . . . 3 Failed . | . . . . Catastrophic . | . . . . Database Lockouts . | . . . . Manual . | . . . . Terminals . | . . . . Fabricators . | . . . . Repair Stations . | . . . . Recycling Units . | . . . . Scanalyzers . | . . . . Garrison Access . | . . . . Terminal Hacks 3 | . . . 3 Record 3 | . . . 3 Fabricator Hacks . | . . . . Repair Station Hacks . | . . . . Recycling Unit Hacks . | . . . . Scanalyzer . | . . . . Garrison Access Hacks . | . . . . Unauthorized Hacks . | . . . . Terminals . | . . . . Fabricators . | . . . . Repair Stations . | . . . . Recycling Units . | . . . . Scanalyzers . | . . . . Garrison Access . | . . . . Data Cores Recovered . | . . . . Used . | . . . . Hacking Detections . | . . . . Full Trace Events . | . . . . Feedback Events . | . . . . Feedback Blocked . | . . . . Robot Schematics Acquired . | . . . . Robots Built . | . . . . Authchips . | . . . . Time . | . . . . Total Robot Build Rating . | . . . . Part Schematics Acquired . | . . . . Parts Built . | . . . . Authchips . | . . . . Time . | . . . . Total Part Build Rating . | . . . . Part Studies Acquired . | . . . . Parts Repaired . | . . . . Time . | . . . . Parts Recycled . | . . . . Recycled Matter . | . . . . Retrieved Matter . | . . . . Retrieved Components . | . . . . Parts Scanalyzed . | . . . . Part Schematics Acquired . | . . . . Parts Damaged . | . . . . Bothacking | -11 -10 -10 -10 ------------ Run | Yrd Mat Min Sub Used RIF Installer . | . . . . Robots Hacked . | . . . . Non-combat . | . . . . Combat . | . . . . Robot Hacks Applied . | . . . . Relay Couplers Released . | . . . . Fabnet Peak Effective % . | . . . . Robots Rewired . | . . . . Allies Hacked . | . . . . Hacks Repelled . | . . . . Allies | -11 -10 -10 -10 -------- Run | Yrd Mat Min Sub Total Allies . | . . . . Largest Group . | . . . . Highest-Rated Group . | . . . . Highest-Rated Ally . | . . . . Total Orders . | . . . . Ally Attacks . | . . . . Total Damage . | . . . . Kills . | . . . . Allies Corrupted . | . . . . Allies Melted . | . . . . Intel | -11 -10 -10 -10 ------- Run | Yrd Mat Min Sub Active Infowar (turns) 1024 | . . 384 640 Sensors 1024 | . . 384 640 Terrain 357 | . . . 357 Robot Analysis Total . | . . . . Derelict Logs Recovered 1 | . . . 1 Drone Launches . | . . . . Drone Recoveries . | . . . . Exploration | -11 -10 -10 -10 ------------- Run | Yrd Mat Min Sub Turns Passed 1780 | 59 502 493 726 Spaces Moved 1230 | 34 322 349 525 Core 99 | 34 54 . 11 Treads . | . . . . Legs 731 | . 268 349 114 Wheels . | . . . . Hover . | . . . . Flight 400 | . . . 400 Fastest Speed 37 | 50 120 120 37 Average Speed 113 | 142 133 120 95 Slowest Speed 300 | 200 200 120 300 Overloaded Moves . | . . . . Propulsion Burnouts . | . . . . Robots Hopped . | . . . . Potential Cave-ins . | . . . . Cave-ins Triggered . | . . . . Exploration Rate (%) 46 | 3 66 91 24 Regions Visited 3 Branch Regions 2 Pre-discovered Areas . | . . . . Known Exits Taken 3 | 1 1 1 . Unknown Exits Taken . | . . . . Scrap Searched . | . . . . Spaces Dug . | . . . . Terrain Destroyed . | . . . . Melee . | . . . . Projectile . | . . . . AOE . | . . . . Terrain Rammed . | . . . . Walls Destroyed . | . . . . Machines Disabled . | . . . . Actions | -11 -10 -10 -10 --------- Run | Yrd Mat Min Sub Total 1502 | 45 369 407 681 Wait 160 | 3 24 45 88 Move 1227 | 33 321 348 525 Hop . | . . . . Pick Up 25 | 8 3 4 10 Fast Attach 1 | . . . 1 Attach 17 | 1 4 2 10 Detach 2 | . . . 2 Swap 1 | . . . 1 Drop 2 | . . . 2 Fire 67 | . 17 8 42 Melee . | . . . . Ram . | . . . . Kick . | . . . . Crush . | . . . . Escape Stasis . | . . . . Rewire . | . . . . Trap . | . . . . Miscellaneous . | . . . . Route ------- -11/Scrapyard -10/Materials (discovered 4 exits: *Mat x2 / *Min x2) -10/Mines (discovered 3 exits: *Mat x2 / *Sub) -10/Subcaves (discovered 2 exits: *Mat / *Rec) History --------- Turn | Location | Event 20 | -11/Scrapyard | Identified exit to Materials 20 | -11/Scrapyard | Discovered exit to Materials (range 15) 60 | -11/Scrapyard | Entered Materials 60 | -10/Materials | Evolved 1 slot: Utility x1 164 | -10/Materials | Identified exit to Mines 164 | -10/Materials | Discovered exit to Mines (range 16) 266 | -10/Materials | Identified exit to Materials 266 | -10/Materials | Discovered exit to Materials (range 16) 307 | -10/Materials | Build established: Hacker-Mutant 444 | -10/Materials | Discovered exit to Mines (range 16) 505 | -10/Materials | Discovered exit to Materials (range 13) 562 | -10/Materials | Entered Mines 665 | -10/Mines | Discovered exit to Materials (range 13) 668 | -10/Mines | Found a damaged Exp. Sensor Array with a note attached 670 | -10/Mines | Found Prototype Device 671 | -10/Mines | Identified Exp. Sensor Array 683 | -10/Mines | Received a Rocket Launcher from a helpful Derelict 905 | -10/Mines | Discovered exit to Materials (range 5) 909 | -10/Mines | Joined a pair of Derelicts in attacking an 0b10 outpost 960 | -10/Mines | Identified exit to Subcaves 960 | -10/Mines | Discovered exit to Subcaves (range 11) 1055 | -10/Mines | Entered Subcaves 1167 | -10/Subcaves | Visited Clippyterm 1170 | -10/Subcaves | Learned 2 Materials zone layouts 1171 | -10/Subcaves | Learned Research machine intel 1212 | -10/Subcaves | A swath of the cavern ceiling suddenly collapsed 1320 | -10/Subcaves | Core integrity fell below 50% 1372 | -10/Subcaves | Identified exit to Recycling 1372 | -10/Subcaves | Discovered exit to Recycling (range 6) 1378 | -10/Subcaves | Lost 4 parts (1n1u2w) 1461 | -10/Subcaves | Identified exit to Materials 1461 | -10/Subcaves | Discovered exit to Materials (range 2) 1561 | -10/Subcaves | A swath of the cavern ceiling suddenly collapsed 1713 | -10/Subcaves | Build established: Scavenger-Mutant 1772 | -10/Subcaves | Core integrity fell below 20% 1781 | -10/Subcaves | Destroyed by 27-WE5(R) with Subdweller Machine Gun Last Messages --------------- Rifle. 01431_ Acquired Hvy. Assault Rifle. 01461_ EXIT=FOUND: MATERIALS 01480_ Acquired 45 matter. 01480_ Acquired 30 matter. 01520_ Acquired 3 matter. 01521_ Acquired Sub. Laser. A swath of the cavern ceiling suddenly collapses. 01613_ Triggered Piercing Trap. 01613_ Spikes shoot up from the floor. 01613_ Critical hit (Impale). 01613_ Flight Unit destroyed. 01672_ Acquired 5 matter. 01717_ Dropped Lgt. Ion Engine. 01718_ Acquired Riot Gun. 01769_ Acquired Mak. Laser. 01780_ X3-IGH(R) suffers critical hit (Destroy). 01780_ Disposable Heat Sink melted. 01780_ X3-IGH(R) destroyed. Map ----- +----------------------------------------------------+ | ?????????????????????????????????????????????????? | | ?????????????????????????????????????????????????? | | ?????????????????????????????????????????????????? | | ?????????????????????????????????????????????????? | | ?????????????????????????????????????????????????? | | ?????????????????????????????????????????????????? | | ?????????????????????????????????????????????????? | | ?????????????????????????????????????????????????? | | ?????????????????????????????????????????????????? | | ?????????????????????????????????????????????????? | | ?????????????????????????????????????????????????? | | ?????????????????????????????????????????????????? | | ?????????????????????????????????????????????????? | | ??????????????????????????????#??????????????????? | | ??????????????????????? ?????????????????????????? | | ?????????????????????????????????????????????????? | | ?????????????????????????????????????????????????? | | ????????????#???????#????????????????????????????? | | ??????????????????????? ???????????????????????? | | ??????????????????????# ""??????#????????????????? | | ?????????????#???????? ""?????? ##???????????????? | | ????????????????????###"""????" #????#??????????? | | ????????????????????#""""#### " ?????????????????? | | ?????????????????????""""=R* ???????????????????? | | ??????????????????????#""&%"?????????????????????? | | ??????????????????????#""@#??????#???????????????? | | ??????????????????????##" #??????????????????????? | | ????????????????????#??# "##????????#????????????? | | ????????????????#??????# ""##????????????????????? | | ??????????????????????## ""#????????????????????? | | ??????????????????????# #?????#??????????????? | | ???????????? ??????#?## #????#???????????????? | | ??????????????????#???## #?????#??????????????? | | ????????????????????#?# ##????????????????????? | | ???????????????# ???#?## #??#??????????????????? | | ???????????????# #### #????????#?#??????????? | | ???????????????# #?????#???????????????? | | ???????????????# ##????????????????????? | | ???????????? ??# # ### #???????#?????#???????? | | ??????????? ??## ???# #####??????????????????? | | ?????????? ### ????# ## ##?????????????????? | | ?????????? ????## ####???????????#??? | | ??????????? ##???# #?#????????###### | | ????????????# ?### #??????????#"""## | | ?????????????# ?# ##?????#????#"" ## | | ??????????????# ##### ##???????????#"X | | ???????????#??# ##??# ####????????????#"" ## | | ?????????????## ##### ######??????????#"""## | | ????????????## #?#?????????###### | | ???????????## * #????????????????# | +----------------------------------------------------+ Best States ------------- Heat Dissipation 25 Energy Generation 14 Energy Capacity 250 Matter Stores 300 Matter Capacity 300 Sight Range 16 Robot Scan Range 20 Terrain Scan Range 16 Terrain Scan Density 10 Resistance: KI 35 Resistance: TH 35 Resistance: EX 35 Resistance: EM 35 Resistance: I 35 Resistance: S 35 Resistance: P 35 Evasion (%) 62 Offensive Hacking 20 Item Schematics ----------------- None Robot Schematics ------------------ None Fabricated ------------ Nothing Repaired ---------- Nothing Studied --------- None Alien Tech Used ----------------- None Achievements -------------- None Challenges ------------ None Game ------ Seed SigixDisruptorArchive Manual? 0 Play Time 00:10:15 Cumulative 148.8 hours Start 2025.12.01 @ 08:57:45 End 2025.12.01 @ 09:07:04 Sessions 1 Manual Loads 0 Difficulty Explorer Special Mode None Game No. 185 Rogue 0 Adventurer 0 Explorer 185 Win Type - Total 0 Types 0/0/0/0/0/0/0/0/0/0 Lore% 69 Gallery% 66 Achievement% 52 Wizard Run 0 Options --------- Layout 1 ASCII 0 Keyboard 0 Movement Mouse Keybinds 0 Fullscreen 1 Font 24/Smallcaps Map View 50x35 Zoom Use 0% Tactical HUD 1 Map Filters NONE Filters NONE Steam 1 RUN: c3ae2fc4-260f-4f94-beae-a3e13feaf39c